[Event "*** Titled Tuesday Blitz"]
[Site "Chess.com"]
[Date "2019.03.05"]
[Round "4"]
[White "raviteja81293"]
[Black "NoGalloNoParty"]
[Result "1/2-1/2"]
[WhiteElo "2557"]
[BlackElo "2343"]
[TimeControl "180+2"]
[EndTime "13:56:00 PST"]
[Termination "Game drawn by repetition"]

1. d4 {[%clk 0:03:01.9]} 1... Nf6 {[%clk 0:03:00.5]} 2. Nf3 {[%clk 0:03:03.3]}
2... g6 {[%clk 0:03:01.1]} 3. Nc3 {[%clk 0:03:02.8]} 3... d5 {[%clk 0:03:01.7]}
4. Bf4 {[%clk 0:03:02.8]} 4... Bg7 {[%clk 0:03:02.3]} 5. e3 {[%clk 0:03:04.4]}
5... O-O {[%clk 0:03:02.3]} 6. Be2 {[%clk 0:03:06]} 6... c5 {[%clk 0:03:02]} 7.
dxc5 {[%clk 0:03:06.5]} 7... Na6 {[%clk 0:03:01.8]} 8. Bxa6 {[%clk 0:03:05.3]}
8... bxa6 {[%clk 0:03:02.8]} 9. O-O {[%clk 0:03:04.2]} 9... Qa5 {[%clk 0:02:19]}
10. Be5 {[%clk 0:02:49.8]} 10... Qxc5 {[%clk 0:02:11.8]} 11. Bxf6 {[%clk
0:02:50.9]} 11... Bxf6 {[%clk 0:02:12.4]} 12. Qxd5 {[%clk 0:02:52.2]} 12... Qxd5
{[%clk 0:02:02.4]} 13. Nxd5 {[%clk 0:02:54.1]} 13... Bxb2 {[%clk 0:02:02.6]} 14.
Nxe7+ {[%clk 0:02:55.3]} 14... Kg7 {[%clk 0:02:02]} 15. Rab1 {[%clk 0:02:56.2]}
15... Bf6 {[%clk 0:02:02.2]} 16. Nxc8 {[%clk 0:02:55]} 16... Rfxc8 {[%clk
0:02:01.2]} 17. Rfc1 {[%clk 0:02:52.3]} 17... Rc3 {[%clk 0:01:59.6]} 18. Kf1
{[%clk 0:02:44.5]} 18... Rac8 {[%clk 0:02:00.2]} 19. Ne1 {[%clk 0:02:29.6]}
19... Ra3 {[%clk 0:01:59.1]} 20. Rb7 {[%clk 0:02:30.5]} 20... Rxa2 {[%clk
0:01:57.9]} 21. Rxa7 {[%clk 0:02:31.8]} 21... a5 {[%clk 0:01:54.4]} 22. c4
{[%clk 0:02:30.2]} 22... a4 {[%clk 0:01:34.4]} 23. c5 {[%clk 0:02:27.1]} 23...
Rd8 {[%clk 0:01:10.3]} 24. c6 {[%clk 0:02:21.4]} 24... a3 {[%clk 0:00:42.1]} 25.
c7 {[%clk 0:02:22.3]} 25... Rc8 {[%clk 0:00:43.3]} 26. Nc2 {[%clk 0:02:12.7]}
26... Rb2 {[%clk 0:00:34.7]} 27. Nxa3 {[%clk 0:02:10.8]} 27... Rb4 {[%clk
0:00:27.7]} 28. Nc4 {[%clk 0:02:09.3]} 28... Be7 {[%clk 0:00:16.1]} 29. Rc2
{[%clk 0:02:08.6]} 29... Bc5 {[%clk 0:00:16.9]} 30. Ra5 {[%clk 0:02:05.5]} 30...
Rxc7 {[%clk 0:00:16.7]} 31. Nd2 {[%clk 0:01:56.3]} 31... Bb6 {[%clk 0:00:17.4]}
32. Rxc7 {[%clk 0:01:57]} 32... Bxc7 {[%clk 0:00:18.7]} 33. Ra2 {[%clk
0:01:57.8]} 33... Be5 {[%clk 0:00:18.5]} 34. g3 {[%clk 0:01:58.5]} 34... h5
{[%clk 0:00:19]} 35. h4 {[%clk 0:01:59]} 35... Bf6 {[%clk 0:00:20.2]} 36. Ke2
{[%clk 0:02:00.2]} 36... g5 {[%clk 0:00:15.2]} 37. hxg5 {[%clk 0:02:00.4]} 37...
Bxg5 {[%clk 0:00:17.1]} 38. Nf3 {[%clk 0:02:01.9]} 38... Bf6 {[%clk 0:00:18.3]}
39. Ra5 {[%clk 0:02:01.8]} 39... h4 {[%clk 0:00:19.1]} 40. g4 {[%clk 0:01:59.1]}
40... Rxg4 {[%clk 0:00:19.2]} 41. Rf5 {[%clk 0:01:56.8]} 41... Kg6 {[%clk
0:00:20.2]} 42. Rb5 {[%clk 0:01:51]} 42... h3 {[%clk 0:00:21.4]} 43. Rb1 {[%clk
0:01:52.1]} 43... Ra4 {[%clk 0:00:16.8]} 44. Rh1 {[%clk 0:01:50.7]} 44... Ra2+
{[%clk 0:00:18]} 45. Kd3 {[%clk 0:01:45.9]} 45... Rxf2 {[%clk 0:00:19]} 46. Rxh3
{[%clk 0:01:47.5]} 46... Rg2 {[%clk 0:00:20]} 47. Nd2 {[%clk 0:01:47.6]} 47...
Bg5 {[%clk 0:00:21.1]} 48. Ne4 {[%clk 0:01:48.2]} 48... f5 {[%clk 0:00:21.7]}
49. Nxg5 {[%clk 0:01:45.1]} 49... Kxg5 {[%clk 0:00:23.6]} 50. Rf3 {[%clk
0:01:46.2]} 50... Kg4 {[%clk 0:00:23]} 51. Rf4+ {[%clk 0:01:47.3]} 51... Kg5
{[%clk 0:00:24.4]} 52. Rf3 {[%clk 0:01:48.5]} 52... Kg4 {[%clk 0:00:25.1]} 53.
Rf4+ {[%clk 0:01:50]} 53... Kg5 {[%clk 0:00:26.5]} 54. Rf3 {[%clk 0:01:51.7]}
54... Kg4 {[%clk 0:00:28]} 55. Rf4+ {[%clk 0:01:53.1]} 1/2-1/2

[Event "*** Titled Tuesday Blitz"]
[Site "Chess.com"]
[Date "2019.03.05"]
[Round "4"]
[White "senecacrane"]
[Black "JosefineHeinemann"]
[Result "0-1"]
[WhiteElo "2299"]
[BlackElo "2396"]
[TimeControl "180+2"]
[EndTime "13:56:05 PST"]
[Termination "JosefineHeinemann won by checkmate"]

1. Nf3 {[%clk 0:02:59.9]} 1... c5 {[%clk 0:03:00.7]} 2. e3 {[%clk 0:03:00.6]}
2... g6 {[%clk 0:03:01.5]} 3. d4 {[%clk 0:03:01.7]} 3... Bg7 {[%clk 0:03:03.1]}
4. d5 {[%clk 0:03:03.2]} 4... d6 {[%clk 0:03:03.3]} 5. c4 {[%clk 0:03:03.5]}
5... Nf6 {[%clk 0:03:03.5]} 6. Nc3 {[%clk 0:03:04.5]} 6... O-O {[%clk
0:03:04.9]} 7. Be2 {[%clk 0:03:04.6]} 7... e6 {[%clk 0:03:05.9]} 8. O-O {[%clk
0:03:05.6]} 8... exd5 {[%clk 0:03:07.2]} 9. cxd5 {[%clk 0:03:07.5]} 9... a6
{[%clk 0:03:08.8]} 10. a4 {[%clk 0:03:08.7]} 10... Re8 {[%clk 0:03:10.3]} 11.
Nd2 {[%clk 0:03:08.1]} 11... Nbd7 {[%clk 0:03:09.5]} 12. e4 {[%clk 0:03:01.1]}
12... Rb8 {[%clk 0:03:10.2]} 13. a5 {[%clk 0:02:57]} 13... Qc7 {[%clk
0:03:03.7]} 14. Nc4 {[%clk 0:02:50.8]} 14... Nxe4 {[%clk 0:03:00.6]} 15. Nxe4
{[%clk 0:02:42.5]} 15... Rxe4 {[%clk 0:03:02.5]} 16. Bd3 {[%clk 0:02:42.3]}
16... Re8 {[%clk 0:02:57.6]} 17. Re1 {[%clk 0:02:43.5]} 17... Nf6 {[%clk
0:02:51.8]} 18. Rxe8+ {[%clk 0:02:43.6]} 18... Nxe8 {[%clk 0:02:53.7]} 19. Bg5
{[%clk 0:02:43.7]} 19... Bd7 {[%clk 0:02:50.1]} 20. Qf3 {[%clk 0:02:42]} 20...
h6 {[%clk 0:02:44]} 21. Bh4 {[%clk 0:02:33.8]} 21... Bb5 {[%clk 0:02:43.7]} 22.
Re1 {[%clk 0:02:33.1]} 22... Bxc4 {[%clk 0:02:40.5]} 23. Bxc4 {[%clk 0:02:33.2]}
23... Qxa5 {[%clk 0:02:41.3]} 24. Re7 {[%clk 0:02:30.4]} 24... Qa1+ {[%clk
0:02:31.9]} 25. Bf1 {[%clk 0:02:31.3]} 25... Qxb2 {[%clk 0:02:33.5]} 26. Qxf7+
{[%clk 0:02:31.5]} 26... Kh7 {[%clk 0:02:32.9]} 27. Re6 {[%clk 0:02:16]} 27...
Qc2 {[%clk 0:02:14.7]} 28. Rxe8 {[%clk 0:02:09.7]} 28... Rxe8 {[%clk 0:02:14.9]}
29. Qxe8 {[%clk 0:02:11.6]} 29... a5 {[%clk 0:02:13.8]} 30. Qd7 {[%clk
0:02:05.8]} 30... Qc3 {[%clk 0:02:11.8]} 31. Qxb7 {[%clk 0:01:59.5]} 31... a4
{[%clk 0:02:12.3]} 32. Qb1 {[%clk 0:01:57.1]} 32... a3 {[%clk 0:02:13.3]} 33.
Bd3 {[%clk 0:01:58.6]} 33... Bd4 {[%clk 0:02:06.6]} 34. Bxg6+ {[%clk 0:01:55.3]}
34... Kg7 {[%clk 0:02:07.9]} 35. Bh7 {[%clk 0:01:56]} 35... Kh8 {[%clk
0:02:03.4]} 36. Be4 {[%clk 0:01:38.9]} 36... Qb2 {[%clk 0:01:49.3]} 37. Qxb2
{[%clk 0:01:06.8]} 37... Bxb2 {[%clk 0:01:49.7]} 38. Bb1 {[%clk 0:01:08.7]}
38... c4 {[%clk 0:01:51.3]} 39. Bg3 {[%clk 0:01:07]} 39... c3 {[%clk 0:01:51.1]}
40. Bxd6 {[%clk 0:01:02.9]} 40... c2 {[%clk 0:01:50.9]} 41. Bxc2 {[%clk
0:01:04.3]} 41... a2 {[%clk 0:01:51.8]} 42. g3 {[%clk 0:01:04.4]} 42... a1=Q+
{[%clk 0:01:52.5]} 43. Kg2 {[%clk 0:01:06.1]} 43... Qc1 {[%clk 0:01:53]} 44. Be4
{[%clk 0:01:05.2]} 44... Bd4 {[%clk 0:01:46.8]} 45. g4 {[%clk 0:01:00.1]} 45...
Qe1 {[%clk 0:01:46.8]} 46. Bf5 {[%clk 0:00:56.7]} 46... Qxf2+ {[%clk 0:01:47.2]}
47. Kh3 {[%clk 0:00:58.3]} 47... Qf3+ {[%clk 0:01:46.3]} 48. Kh4 {[%clk
0:00:59.7]} 48... Qxd5 {[%clk 0:01:46.4]} 49. Bf4 {[%clk 0:00:59.6]} 49... Bg7
{[%clk 0:01:40.5]} 50. h3 {[%clk 0:00:59.5]} 50... Qf3 {[%clk 0:01:39.9]} 51.
Bc7 {[%clk 0:00:51.9]} 51... Bf6+ {[%clk 0:01:40]} 52. Kh5 {[%clk 0:00:52.8]}
52... Qxh3+ {[%clk 0:01:41]} 53. Kg6 {[%clk 0:00:53.7]} 53... Bg7 {[%clk
0:01:41.7]} 54. Bd8 {[%clk 0:00:53.2]} 54... Qe3 {[%clk 0:01:31.8]} 55. Bh4
{[%clk 0:00:51]} 55... Qe8# {[%clk 0:01:30.9]} 0-1

[Event "*** Titled Tuesday Blitz"]
[Site "Chess.com"]
[Date "2019.03.05"]
[Round "4"]
[White "MishkaFighter"]
[Black "Supernotar"]
[Result "0-1"]
[WhiteElo "2312"]
[BlackElo "2535"]
[TimeControl "180+2"]
[EndTime "13:56:07 PST"]
[Termination "Supernotar won by resignation"]

1. Nf3 {[%clk 0:03:01.9]} 1... c5 {[%clk 0:02:57.6]} 2. g3 {[%clk 0:03:01.8]}
2... Nc6 {[%clk 0:02:57.5]} 3. Bg2 {[%clk 0:03:00.7]} 3... g6 {[%clk 0:02:58]}
4. O-O {[%clk 0:03:00.5]} 4... Bg7 {[%clk 0:02:59.3]} 5. c4 {[%clk 0:02:57.8]}
5... e6 {[%clk 0:03:00.5]} 6. Nc3 {[%clk 0:02:58.3]} 6... Nge7 {[%clk
0:03:01.5]} 7. d4 {[%clk 0:02:59.2]} 7... cxd4 {[%clk 0:03:01.7]} 8. Nb5 {[%clk
0:03:00.1]} 8... d5 {[%clk 0:03:02.6]} 9. cxd5 {[%clk 0:02:54.2]} 9... Nxd5
{[%clk 0:03:03.4]} 10. Nbxd4 {[%clk 0:02:54.1]} 10... Nxd4 {[%clk 0:03:04.5]}
11. Nxd4 {[%clk 0:02:56]} 11... O-O {[%clk 0:03:05.2]} 12. e4 {[%clk 0:02:32.4]}
12... Nb6 {[%clk 0:03:05.9]} 13. Nb5 {[%clk 0:02:30.9]} 13... Bd7 {[%clk
0:03:02.8]} 14. Qb3 {[%clk 0:02:25.4]} 14... Bc6 {[%clk 0:02:45.1]} 15. Rd1
{[%clk 0:02:23.7]} 15... Qe7 {[%clk 0:02:36.8]} 16. Bd2 {[%clk 0:02:11.4]} 16...
Qc5 {[%clk 0:01:58.4]} 17. Nxa7 {[%clk 0:01:17.7]} 17... Ba4 {[%clk 0:01:41.3]}
18. Rdc1 {[%clk 0:00:48.5]} 18... Bxb3 {[%clk 0:01:29.6]} 19. Rxc5 {[%clk
0:00:49]} 19... Rxa7 {[%clk 0:01:30.3]} 20. Rb5 {[%clk 0:00:48.4]} 20... Nc4
{[%clk 0:01:24.7]} 21. Bb4 {[%clk 0:00:44.5]} 21... Rc8 {[%clk 0:01:07.1]} 22.
Rc1 {[%clk 0:00:35.5]} 22... Bxb2 {[%clk 0:01:00.8]} 23. axb3 {[%clk 0:00:19.4]}
23... Bxc1 {[%clk 0:00:55.6]} 24. bxc4 {[%clk 0:00:20.6]} 24... Rxc4 {[%clk
0:00:47.8]} 25. Bd6 {[%clk 0:00:16.2]} 25... Ba3 {[%clk 0:00:33.6]} 26. Bf1
{[%clk 0:00:13.1]} 26... Rxe4 {[%clk 0:00:28.4]} 27. Bb8 {[%clk 0:00:08.1]}
27... Ra8 {[%clk 0:00:26]} 28. Bf4 {[%clk 0:00:09.1]} 28... Rb4 {[%clk
0:00:22.1]} 29. Rc5 {[%clk 0:00:07.2]} 29... Rxf4 {[%clk 0:00:20.3]} 30. Ra5
{[%clk 0:00:04.7]} 30... Rxa5 {[%clk 0:00:20.4]} 0-1

[Event "*** Titled Tuesday Blitz"]
[Site "Chess.com"]
[Date "2019.03.05"]
[Round "4"]
[White "Genghis_K"]
[Black "gmjoey1"]
[Result "1-0"]
[WhiteElo "2845"]
[BlackElo "2719"]
[TimeControl "180+2"]
[EndTime "13:56:11 PST"]
[Termination "Genghis_K won by resignation"]

1. d4 {[%clk 0:02:31.1]} 1... Nf6 {[%clk 0:02:59.6]} 2. Bf4 {[%clk 0:02:31.4]}
2... e6 {[%clk 0:02:57.6]} 3. e3 {[%clk 0:02:32]} 3... b6 {[%clk 0:02:58.4]} 4.
Nf3 {[%clk 0:02:31.9]} 4... Bb7 {[%clk 0:02:59.2]} 5. Nbd2 {[%clk 0:02:33.2]}
5... h6 {[%clk 0:03:00.1]} 6. h3 {[%clk 0:02:33.7]} 6... Bd6 {[%clk 0:02:59.8]}
7. Ne5 {[%clk 0:02:21.5]} 7... O-O {[%clk 0:02:50.8]} 8. Bd3 {[%clk 0:02:16.4]}
8... Nc6 {[%clk 0:02:38.5]} 9. c3 {[%clk 0:02:11]} 9... Nd5 {[%clk 0:02:02.1]}
10. Bh2 {[%clk 0:02:01.7]} 10... f5 {[%clk 0:01:57.9]} 11. O-O {[%clk
0:01:50.4]} 11... Nxe5 {[%clk 0:01:54.4]} 12. dxe5 {[%clk 0:01:43.6]} 12... Bc5
{[%clk 0:01:55]} 13. Nb3 {[%clk 0:01:39.2]} 13... Qg5 {[%clk 0:01:50.6]} 14. Qf3
{[%clk 0:01:19.8]} 14... Bc6 {[%clk 0:01:50.6]} 15. Qg3 {[%clk 0:01:13.7]} 15...
Be7 {[%clk 0:01:32.5]} 16. Nd4 {[%clk 0:01:08.8]} 16... Bb7 {[%clk 0:01:32.9]}
17. Rfe1 {[%clk 0:00:53.8]} 17... a6 {[%clk 0:01:30.1]} 18. Rad1 {[%clk
0:00:50.4]} 18... Qh5 {[%clk 0:01:22.4]} 19. Be2 {[%clk 0:00:39.2]} 19... Qf7
{[%clk 0:01:21.7]} 20. Bf3 {[%clk 0:00:39.4]} 20... g5 {[%clk 0:00:53.1]} 21. c4
{[%clk 0:00:35.4]} 21... c5 {[%clk 0:00:32.8]} 22. cxd5 {[%clk 0:00:30.4]} 22...
Qg6 {[%clk 0:00:26.2]} 23. dxe6 {[%clk 0:00:25.9]} 23... f4 {[%clk 0:00:25.6]}
24. exf4 {[%clk 0:00:24.1]} 24... Bxf3 {[%clk 0:00:21.3]} 25. Nxf3 {[%clk
0:00:17.3]} 25... Rxf4 {[%clk 0:00:22.5]} 26. exd7 {[%clk 0:00:18.4]} 26... Raf8
{[%clk 0:00:20.3]} 27. e6 {[%clk 0:00:19.5]} 27... c4 {[%clk 0:00:21]} 28. Ne5
{[%clk 0:00:19.5]} 28... Qxe6 {[%clk 0:00:21.6]} 29. Qe3 {[%clk 0:00:16.5]}
29... Rxf2 {[%clk 0:00:20.3]} 30. Qxf2 {[%clk 0:00:16.5]} 30... Rxf2 {[%clk
0:00:20.8]} 31. Kxf2 {[%clk 0:00:17.9]} 31... Bc5+ {[%clk 0:00:22.4]} 32. Kf1
{[%clk 0:00:19.3]} 32... Qf5+ {[%clk 0:00:23.2]} 33. Nf3 {[%clk 0:00:20.8]}
33... Qc2 {[%clk 0:00:23.6]} 34. d8=Q+ {[%clk 0:00:21.4]} 34... Kh7 {[%clk
0:00:24.9]} 35. Qd7+ {[%clk 0:00:21.6]} 35... Kg6 {[%clk 0:00:25.1]} 36. Ne5+
{[%clk 0:00:22.3]} 1-0

[Event "*** Titled Tuesday Blitz"]
[Site "Chess.com"]
[Date "2019.03.05"]
[Round "4"]
[White "NM2019"]
[Black "SimonKnightRivendell"]
[Result "1-0"]
[WhiteElo "2087"]
[BlackElo "2015"]
[TimeControl "180+2"]
[EndTime "13:56:12 PST"]
[Termination "NM2019 won by resignation"]

1. e4 {[%clk 0:03:01.9]} 1... c6 {[%clk 0:02:59.8]} 2. d4 {[%clk 0:02:56.2]}
2... d5 {[%clk 0:03:00.8]} 3. Nd2 {[%clk 0:02:55.4]} 3... dxe4 {[%clk
0:03:01.1]} 4. Nxe4 {[%clk 0:02:55.2]} 4... Bf5 {[%clk 0:03:02.7]} 5. Ng3 {[%clk
0:02:55.9]} 5... Bg6 {[%clk 0:03:04.1]} 6. f4 {[%clk 0:02:57.4]} 6... e6 {[%clk
0:02:58.1]} 7. Nf3 {[%clk 0:02:58.2]} 7... Nf6 {[%clk 0:02:50.9]} 8. h4 {[%clk
0:02:59]} 8... Ne4 {[%clk 0:02:37.9]} 9. Nxe4 {[%clk 0:02:51.6]} 9... Bxe4
{[%clk 0:02:37.9]} 10. Ng5 {[%clk 0:02:44.1]} 10... Bf5 {[%clk 0:02:30.5]} 11.
g4 {[%clk 0:02:41.8]} 11... h6 {[%clk 0:02:31.2]} 12. Nxf7 {[%clk 0:02:30]}
12... Kxf7 {[%clk 0:02:21.5]} 13. gxf5 {[%clk 0:02:30.2]} 13... exf5 {[%clk
0:02:22.7]} 14. Bc4+ {[%clk 0:02:25.5]} 14... Ke8 {[%clk 0:02:22.1]} 15. Qh5+
{[%clk 0:02:22.3]} 15... Kd7 {[%clk 0:02:23.1]} 16. Qxf5+ {[%clk 0:02:21.4]}
16... Kc7 {[%clk 0:02:23.7]} 17. Qe5+ {[%clk 0:02:09.2]} 17... Bd6 {[%clk
0:02:24.1]} 18. Qxg7+ {[%clk 0:02:09.7]} 18... Nd7 {[%clk 0:02:25]} 19. Be6
{[%clk 0:01:57.7]} 19... Re8 {[%clk 0:02:17.4]} 20. f5 {[%clk 0:01:50.7]} 20...
Qf6 {[%clk 0:02:02.8]} 21. Qxf6 {[%clk 0:01:46.6]} 21... Nxf6 {[%clk 0:02:03.1]}
22. Bxh6 {[%clk 0:01:45.8]} 22... Ng4 {[%clk 0:01:52.4]} 23. Bg5 {[%clk
0:01:37.5]} 23... Bg3+ {[%clk 0:01:53.2]} 24. Ke2 {[%clk 0:01:32.7]} 24... Bd6
{[%clk 0:01:24.8]} 25. Rag1 {[%clk 0:01:23.5]} 25... Nh2 {[%clk 0:01:16.2]} 26.
Rg2 {[%clk 0:01:21.5]} 26... c5 {[%clk 0:01:06.1]} 27. dxc5 {[%clk 0:01:16]}
27... Be5 {[%clk 0:01:07.1]} 28. Rgxh2 {[%clk 0:01:13.5]} 28... Bxh2 {[%clk
0:01:08.1]} 29. Rxh2 {[%clk 0:01:14.4]} 29... Kc6 {[%clk 0:01:09.1]} 30. b4
{[%clk 0:01:14.3]} 30... Kb5 {[%clk 0:01:06.8]} 31. a3 {[%clk 0:01:13.3]} 31...
a5 {[%clk 0:01:07.2]} 32. c4+ {[%clk 0:01:10.3]} 32... Ka4 {[%clk 0:01:07.2]}
33. Kd3 {[%clk 0:01:10.8]} 33... Kxa3 {[%clk 0:01:08]} 34. b5 {[%clk 0:01:07.4]}
34... Kb3 {[%clk 0:01:02.3]} 35. c6 {[%clk 0:01:03.8]} 35... bxc6 {[%clk
0:01:03.3]} 36. c5+ {[%clk 0:01:04.2]} 36... Kb4 {[%clk 0:01:02.6]} 37. bxc6
{[%clk 0:01:04.5]} 37... Kxc5 {[%clk 0:01:02.3]} 38. c7 {[%clk 0:01:05.3]} 38...
Rxe6 {[%clk 0:01:03.1]} 39. fxe6 {[%clk 0:01:05.9]} 39... Kd6 {[%clk 0:01:02.2]}
40. Re2 {[%clk 0:01:02.9]} 40... a4 {[%clk 0:01:01.6]} 41. e7 {[%clk 0:01:03.3]}
41... a3 {[%clk 0:01:02.3]} 42. e8=Q {[%clk 0:01:02.3]} 42... Rxe8 {[%clk
0:01:03.4]} 43. Rxe8 {[%clk 0:01:02.9]} 43... a2 {[%clk 0:01:04.4]} 44. Ra8
{[%clk 0:01:02.1]} 44... Kxc7 {[%clk 0:01:04.8]} 45. Rxa2 {[%clk 0:01:02.2]}
45... Kd6 {[%clk 0:01:05.4]} 46. h5 {[%clk 0:01:03.6]} 46... Ke6 {[%clk
0:01:05.9]} 47. h6 {[%clk 0:01:05]} 47... Kf7 {[%clk 0:01:06.9]} 48. Rh2 {[%clk
0:01:04.3]} 48... Kg8 {[%clk 0:01:07.3]} 49. h7+ {[%clk 0:01:05.4]} 49... Kf7
{[%clk 0:01:07.9]} 50. h8=Q {[%clk 0:01:05.6]} 1-0

[Event "*** Titled Tuesday Blitz"]
[Site "Chess.com"]
[Date "2019.03.05"]
[Round "4"]
[White "pedromartinez91"]
[Black "SuperCheese"]
[Result "0-1"]
[WhiteElo "2403"]
[BlackElo "2619"]
[TimeControl "180+2"]
[EndTime "13:56:17 PST"]
[Termination "SuperCheese won by resignation"]

1. e4 {[%clk 0:03:01.9]} 1... e6 {[%clk 0:03:00.1]} 2. d4 {[%clk 0:03:02.4]}
2... d5 {[%clk 0:03:02]} 3. Nd2 {[%clk 0:03:03.2]} 3... c5 {[%clk 0:03:02.6]} 4.
exd5 {[%clk 0:03:03.6]} 4... Qxd5 {[%clk 0:03:04.5]} 5. Ngf3 {[%clk 0:03:03.7]}
5... cxd4 {[%clk 0:03:03.4]} 6. Bc4 {[%clk 0:03:04]} 6... Qd6 {[%clk 0:03:05]}
7. O-O {[%clk 0:03:04.5]} 7... Nf6 {[%clk 0:03:05.3]} 8. Nb3 {[%clk 0:03:05.4]}
8... Nc6 {[%clk 0:03:05.5]} 9. Nbxd4 {[%clk 0:03:05.7]} 9... Nxd4 {[%clk
0:03:07.4]} 10. Nxd4 {[%clk 0:03:05.6]} 10... a6 {[%clk 0:03:03.9]} 11. c3
{[%clk 0:03:06.1]} 11... Bd7 {[%clk 0:02:59.5]} 12. Be2 {[%clk 0:03:06]} 12...
O-O-O {[%clk 0:02:58.1]} 13. Bf3 {[%clk 0:03:06.5]} 13... e5 {[%clk 0:02:46.6]}
14. Nc2 {[%clk 0:03:05]} 14... e4 {[%clk 0:02:45.2]} 15. Be2 {[%clk 0:03:04.4]}
15... Qe5 {[%clk 0:02:40.5]} 16. Qd4 {[%clk 0:03:03.9]} 16... Bd6 {[%clk
0:02:32.7]} 17. Qxe5 {[%clk 0:03:03.5]} 17... Bxe5 {[%clk 0:02:34.6]} 18. Be3
{[%clk 0:03:04.5]} 18... Nd5 {[%clk 0:02:28.3]} 19. Bd4 {[%clk 0:03:04.9]} 19...
Rhe8 {[%clk 0:02:10.9]} 20. Rfe1 {[%clk 0:03:02.9]} 20... Nf4 {[%clk 0:02:08.1]}
21. Bf1 {[%clk 0:03:03.5]} 21... f5 {[%clk 0:02:05.2]} 22. g3 {[%clk 0:03:03.5]}
22... Ng6 {[%clk 0:02:02.2]} 23. Rad1 {[%clk 0:03:03.3]} 23... Bxd4 {[%clk
0:02:01.4]} 24. Nxd4 {[%clk 0:03:05.2]} 24... Ne5 {[%clk 0:02:01.6]} 25. Be2
{[%clk 0:03:07.1]} 25... g6 {[%clk 0:02:01.1]} 26. f4 {[%clk 0:03:08]} 26... Nf7
{[%clk 0:01:58.7]} 27. Kf2 {[%clk 0:03:08.6]} 27... Kc7 {[%clk 0:01:59.2]} 28.
Ke3 {[%clk 0:03:09.7]} 28... Bc8 {[%clk 0:01:52.1]} 29. Bc4 {[%clk 0:03:04.1]}
29... Nd6 {[%clk 0:01:51.6]} 30. Bb3 {[%clk 0:03:02]} 30... Re7 {[%clk 0:01:46]}
31. Rd2 {[%clk 0:02:58.9]} 31... b6 {[%clk 0:01:33.7]} 32. Red1 {[%clk
0:02:55.4]} 32... b5 {[%clk 0:01:11]} 33. a4 {[%clk 0:02:54.5]} 33... bxa4
{[%clk 0:01:07.1]} 34. Bxa4 {[%clk 0:02:55.3]} 34... Nc4+ {[%clk 0:01:07.8]} 35.
Ke2 {[%clk 0:02:56.3]} 35... Nxd2 {[%clk 0:01:09.1]} 36. Rxd2 {[%clk 0:02:58.2]}
36... Rd6 {[%clk 0:00:45.3]} 37. Ke3 {[%clk 0:02:52.7]} 37... Bb7 {[%clk
0:00:44.9]} 38. Rd1 {[%clk 0:02:53.2]} 38... Kb6 {[%clk 0:00:45]} 39. Bc2 {[%clk
0:02:44.4]} 39... Red7 {[%clk 0:00:43]} 40. Ba4 {[%clk 0:02:44.5]} 40... Rd8
{[%clk 0:00:43.4]} 41. Bc2 {[%clk 0:02:44.3]} 41... Bd5 {[%clk 0:00:43.4]} 42.
Ba4 {[%clk 0:02:38.8]} 42... Bc4 {[%clk 0:00:43.8]} 43. Ra1 {[%clk 0:02:37]}
43... Bd3 {[%clk 0:00:43.9]} 44. Rc1 {[%clk 0:02:35.6]} 44... Rc8 {[%clk
0:00:44.2]} 45. Ra1 {[%clk 0:02:36.1]} 45... Rc4 {[%clk 0:00:45.4]} 46. Bb3
{[%clk 0:02:33.3]} 46... Rc8 {[%clk 0:00:44.8]} 47. Be6 {[%clk 0:02:29.2]} 47...
Rb8 {[%clk 0:00:40.8]} 48. Bb3 {[%clk 0:02:24.2]} 48... Kc7 {[%clk 0:00:41.6]}
49. Ra3 {[%clk 0:02:26.1]} 49... Rdb6 {[%clk 0:00:37.9]} 50. Kd2 {[%clk
0:02:24.8]} 50... Kd6 {[%clk 0:00:37.7]} 51. Ke3 {[%clk 0:02:25.6]} 51... Bb5
{[%clk 0:00:37.4]} 52. Kd2 {[%clk 0:02:22.8]} 52... Be8 {[%clk 0:00:37.7]} 53.
Ke3 {[%clk 0:02:23.9]} 53... R8b7 {[%clk 0:00:38.3]} 54. g4 {[%clk 0:02:02.3]}
54... fxg4 {[%clk 0:00:36.1]} 55. f5 {[%clk 0:01:59.6]} 55... Bf7 {[%clk
0:00:33.9]} 56. Bxf7 {[%clk 0:01:59.9]} 56... Rxf7 {[%clk 0:00:35.8]} 57. fxg6
{[%clk 0:02:00.3]} 57... hxg6 {[%clk 0:00:37.5]} 58. b4 {[%clk 0:01:58.7]} 58...
Rh7 {[%clk 0:00:33.4]} 59. Ra2 {[%clk 0:01:58.6]} 59... Rh3+ {[%clk 0:00:31.9]}
60. Kxe4 {[%clk 0:01:59.5]} 60... Rxc3 {[%clk 0:00:33]} 61. Rg2 {[%clk
0:01:56.1]} 61... Rc4 {[%clk 0:00:33]} 62. Rxg4 {[%clk 0:01:56.8]} 62... Rxd4+
{[%clk 0:00:32.7]} 63. Kxd4 {[%clk 0:01:54.9]} 63... Rxb4+ {[%clk 0:00:33.2]}
0-1

[Event "*** Titled Tuesday Blitz"]
[Site "Chess.com"]
[Date "2019.03.05"]
[Round "4"]
[White "Awentrap"]
[Black "xLuring1"]
[Result "1-0"]
[WhiteElo "2666"]
[BlackElo "2416"]
[TimeControl "180+2"]
[EndTime "13:56:18 PST"]
[Termination "Awentrap won by resignation"]

1. e4 {[%clk 0:03:01.9]} 1... c5 {[%clk 0:03:00.5]} 2. Nf3 {[%clk 0:03:02.3]}
2... Nc6 {[%clk 0:03:00.7]} 3. Nc3 {[%clk 0:03:02.5]} 3... a6 {[%clk 0:02:59.2]}
4. d4 {[%clk 0:02:59.8]} 4... cxd4 {[%clk 0:02:59.9]} 5. Nxd4 {[%clk 0:03:01.7]}
5... e6 {[%clk 0:03:01]} 6. Nxc6 {[%clk 0:02:52.3]} 6... bxc6 {[%clk 0:03:01.1]}
7. f4 {[%clk 0:02:49.1]} 7... d5 {[%clk 0:02:59.6]} 8. Bd3 {[%clk 0:02:49.9]}
8... Nf6 {[%clk 0:02:58]} 9. O-O {[%clk 0:02:49]} 9... Be7 {[%clk 0:02:56.5]}
10. Qe2 {[%clk 0:02:45.7]} 10... O-O {[%clk 0:02:41.8]} 11. Bd2 {[%clk
0:02:37.5]} 11... Re8 {[%clk 0:02:40.9]} 12. Kh1 {[%clk 0:02:34.4]} 12... d4
{[%clk 0:02:34.6]} 13. Nd1 {[%clk 0:02:33]} 13... c5 {[%clk 0:02:33.7]} 14. b3
{[%clk 0:02:29.2]} 14... Bb7 {[%clk 0:02:32.4]} 15. Nb2 {[%clk 0:02:28.4]} 15...
Qc7 {[%clk 0:02:28.6]} 16. Nc4 {[%clk 0:02:28.5]} 16... Bf8 {[%clk 0:02:08.4]}
17. Rae1 {[%clk 0:02:24.8]} 17... Nd7 {[%clk 0:01:57.7]} 18. Qg4 {[%clk
0:02:19.4]} 18... a5 {[%clk 0:01:26.3]} 19. a4 {[%clk 0:02:10.3]} 19... Nb8
{[%clk 0:01:27.1]} 20. Rf3 {[%clk 0:01:49.7]} 20... f5 {[%clk 0:01:17.8]} 21.
Qh4 {[%clk 0:01:07.2]} 21... g6 {[%clk 0:01:15.4]} 22. Rg3 {[%clk 0:01:03]}
22... fxe4 {[%clk 0:00:50.5]} 23. Bxe4 {[%clk 0:01:03.7]} 23... Bxe4 {[%clk
0:00:51.3]} 24. Rxe4 {[%clk 0:01:05.6]} 24... Nd7 {[%clk 0:00:44.2]} 25. Rh3
{[%clk 0:01:01]} 25... h6 {[%clk 0:00:15]} 26. Rg3 {[%clk 0:00:41]} 26... Kh7
{[%clk 0:00:09.4]} 27. Qg4 {[%clk 0:00:38.7]} 27... g5 {[%clk 0:00:04.9]} 28.
fxg5 {[%clk 0:00:38.7]} 28... Bg7 {[%clk 0:00:06.1]} 29. gxh6 {[%clk 0:00:35.9]}
29... Bf6 {[%clk 0:00:07.7]} 30. Rxe6 {[%clk 0:00:27.3]} 30... Rxe6 {[%clk
0:00:08.2]} 31. Qxe6 {[%clk 0:00:29.2]} 31... Rf8 {[%clk 0:00:08.9]} 32. Rf3
{[%clk 0:00:24.8]} 32... Ne5 {[%clk 0:00:10]} 33. Nxe5 {[%clk 0:00:24.6]} 33...
Qxe5 {[%clk 0:00:08.7]} 34. Qxe5 {[%clk 0:00:25.5]} 34... Bxe5 {[%clk 0:00:10]}
35. Rxf8 {[%clk 0:00:26.9]} 1-0